Cogmind - Beta 15 @@@ ROGUE MODE // 2025.08.29 @ 16:56:42 Player: opaguck Result: Destroyed by 01-MTF with 01-MTF's Shockpuncher Performance ------------- Evolutions (1) 500 Regions Visited (4) 800 Robots Destroyed (35) 175 Value Destroyed (783) 783 Prototype IDs (5) 100 Alien Tech Used (0) 0 Bonus (172) 172 TOTAL SCORE: 2530 Bonus ------- Follower Combat Kills 201 Friendly Fire -29 Cogmind --------- Core Integrity 0/400 Matter 290/300 Energy 100/100 System Corruption 4% Temperature Cool (0) Movement Hovering (80) Location -9/Recycling Parts ------- > --- POWER (1) -------- (None) > --- PROPULSION (3) --- Combat Airjet Improved Flight Unit > --- UTILITY (3) ------ Scrap Engine Hacking Suite > --- WEAPON (2) ------- Improved Light Cannon > --- INVENTORY (5) ---- Drone Bay (2/2) Drone Bay (2/2) Drone Bay (2/2) Peak State ------------ > --- POWER ------------ (None) > --- PROPULSION ------- Combat Airjet Improved Flight Unit > --- UTILITY ---------- Scrap Engine Hacking Suite > --- WEAPON ----------- Improved Light Cannon > --- INVENTORY -------- Drone Bay Drone Bay Drone Bay [Rating: 32] Favorites ----------- Power Ion Engine Engine Ion Engine Propulsion Improved Flight Unit Leg Aluminum Leg Wheel Wheel Hover Unit Combat Airjet Flight Unit Improved Flight Unit Utility Small Storage Unit Device ECM Suite Storage Small Storage Unit Hackware Hacking Suite Weapon Heavy EM Shotgun Energy Gun Heavy EM Shotgun Ballistic Gun Improved Assault Rifle Ballistic Cannon Improved Light Cannon Launcher EMP Blaster Special Melee Weapon Datajack Build | -11 -10 -9 -9 -9 ------- Run | Yrd Mat Mat Sto Rec Slots Evolved 2 | . . 2 . . Power . | . . . . . Propulsion 1 | . . 1 . . Utility 1 | . . 1 . . Weapon . | . . . . . Parts Attached 38 | 7 1 14 11 5 Power 3 | 1 . 1 1 . Engine 3 | 1 . 1 1 . Core . | . . . . . Reactor . | . . . . . Propulsion 13 | 2 . 5 5 1 Treads . | . . . . . Leg 3 | 2 . 1 . . Wheel 4 | . . 4 . . Hover 2 | . . . 1 1 Flight 4 | . . . 4 . Utility 10 | 2 1 3 1 3 Device 8 | 1 . 3 1 3 Storage 1 | 1 . . . . Processor . | . . . . . Hackware 1 | . 1 . . . Protection . | . . . . . Artifact . | . . . . . Weapon 12 | 2 . 5 4 1 Energy Gun 5 | 2 . 3 . . Energy Cannon . | . . . . . Ballistic Gun 1 | . . . 1 . Ballistic Cannon 2 | . . . 2 . Launcher 3 | . . 2 1 . Special Weapon . | . . . . . Impact Weapon . | . . . . . Slashing Weapon . | . . . . . Piercing Weapon . | . . . . . Special Melee Weapon 1 | . . . . 1 Unidentified Prototypes 5 | . . 1 3 1 Parts Lost 9 | . . 1 2 6 Power 1 | . . . . 1 Propulsion 4 | . . . 2 2 Utility . | . . . . . Weapon 4 | . . 1 . 3 Highest Loss Streak 4 | . . 1 2 4 To Critical Strikes . | . . . . . Average Backups 6 | 1 7 7 7 7 Power . | . 1 1 . . Propulsion . | . 4 1 . . Utility 3 | . 1 2 4 5 Weapon 1 | . 1 1 2 1 Tool/Special . | . . . . . Unused Backups 9 | . 1 1 4 3 Power . | . . . . . Propulsion 1 | . 1 . . . Utility 6 | . . . 3 3 Weapon 2 | . . 1 1 . Tool/Special . | . . . . . Average Slot Usage (%) 91 | . 100 93 91 84 Engine 11 | . 14 11 11 9 Leg 8 | . 28 15 . . Wheel 7 | . . 17 11 . Flight 15 | . . . 21 30 Device 9 | . 10 7 11 10 Storage 11 | . 14 11 11 10 Hackware 9 | . 3 11 11 11 Energy Gun 11 | . 28 14 8 2 Launcher 4 | . . 5 4 6 Peak Build Rating 32 | 7 10 19 24 32 Average Rating 15 | 6 7 15 19 21 On Entrance 11 | . 7 10 18 20 Naked Turns . | . . . . . Heaviest Build 24 | 14 14 23 24 15 Greatest Support 30 | 20 20 30 30 15 Greatest Overweight (x) 3 | 2 . . 3 . Average Overweight (x) . | . . . . . Largest Inventory Capacity 8 | 8 8 8 8 8 Average Capacity 7 | 7 8 8 8 7 Most Carried 8 | 7 8 8 8 8 Average Carried 6 | 1 7 7 7 7 Final Capacity 8 | 8 8 8 8 5 Final Carried 8 | 7 8 7 8 3 Class Distribution -------------------- 52% | Mutant 28% | Commander-Mutant 18% | Scavenger-Mutant Dominant Class ---------------- Mutant | -10/Materials Mutant | -9/Materials Mutant | -9/Storage Commander-Mutant | -9/Recycling Resources | -11 -10 -9 -9 -9 ----------- Run | Yrd Mat Mat Sto Rec Matter Collected 909 | 270 . 215 336 88 Remotely . | . . . . . Salvage Created 1099 | 218 12 487 382 . Parts 86 | 26 1 26 33 . Haulers Intercepted 1 | . . . 1 . Recyclers Shooed 1 | 1 . . . . Parts Field Recycled . | . . . . . Retrieved Matter . | . . . . . Parts Self-Destructed . | . . . . . Prevented . | . . . . . Kills | -11 -10 -9 -9 -9 ------- Run | Yrd Mat Mat Sto Rec Combat Hostiles Destroyed 18 | . . 10 8 . Guns 13 | . . 8 5 . AOE 5 | . . 2 3 . Classes Destroyed 10 | 3 1 3 3 . Worker 2 | 2 . . . . Builder 1 | . . . 1 . Tunneler 7 | 6 . 1 . . Hauler 1 | . . . 1 . Recycler 1 | 1 . . . . Operator 2 | . 1 1 . . Watcher 3 | . . 1 2 . Swarmer 3 | . . . 3 . Grunt 12 | . . 8 4 . Sentry 3 | . . 2 1 . Best Kill Streak 6 | 2 1 6 3 . Combat Bots Only 3 | . . 3 3 . Max Kills in Single Turn 2 | 2 1 1 2 . Gunslinging . | . . . . . Exploded 2 | . . 1 2 . Melee . | . . . . . Uniques/NPCs Destroyed . | . . . . . Combat | -11 -10 -9 -9 -9 -------- Run | Yrd Mat Mat Sto Rec Hostile Shots Fired 154 | . 7 61 32 54 Missed 61 | . 3 24 15 19 Hits 93 | . 4 37 17 35 Melee 1 | . . . . 1 Projectile 92 | . 4 37 17 34 AOE 4 | . . . . 4 Critical Strikes 3 | . . . . 3 Damage Taken 1389 | . 51 479 221 638 Core 432 | . 18 54 43 317 Absorbed by Shields 52 | . . . 4 48 Core Remaining (%) 96 | 100 92 . . . Volleys Fired 79 | 19 3 28 17 12 Largest 2 | 2 2 2 2 1 Hottest 100 | 90 90 100 100 50 Shots Fired 132 | 38 6 50 27 11 Gun 114 | 38 6 42 20 8 Cannon 3 | . . . . 3 Launcher 15 | . . 8 7 . Special . | . . . . . Kinetic 7 | . . . 4 3 Thermal 44 | 38 6 . . . Explosive 12 | . . 8 4 . Electromagnetic 69 | . . 42 19 8 Robot Hit Streak 8 | 4 4 8 6 3 Robot Miss Streak 6 | 3 1 6 5 4 Penetration Max . | . . . . . Secondary Targets 3 | . . 2 1 . Max Gunslinging Chain 1 | . . 1 1 . Shots Hit Robots 102 | 20 4 37 16 25 Core Hits 53 | 10 2 23 18 . Critical Kills . | . . . . . Critical Parts Destroyed . | . . . . . Critical Strikes . | . . . . . Melee Attacks 16 | . . . . 16 Impact . | . . . . . Slashing . | . . . . . Piercing . | . . . . . Sneak Attacks 14 | . . . . 14 Combat Hostiles . | . . . . . Follow-up Attacks . | . . . . . Damage Inflicted 1615 | 242 49 631 600 93 Guns 996 | 242 49 398 252 55 Cannons 38 | . . . . 38 Explosions 581 | . . 233 348 . Melee . | . . . . . Ramming . | . . . . . Kinetic 53 | . . . 15 38 Thermal 314 | 242 49 . 23 . Explosive 348 | . . 233 115 . Electromagnetic 900 | . . 398 447 55 Impact . | . . . . . Slashing . | . . . . . Piercing . | . . . . . Highest Corruption 4 | . . . 2 4 Average Corruption 2 | . . . 2 2 Corruption Purged . | . . . . . Corruption Blocked . | . . . . . Effects 15 | . . . 5 10 Message Errors 5 | . . . 2 3 Matter Fused 3 | . . . 1 2 Heat Flow Errors 3 | . . . 2 1 Data Loss (minor) 2 | . . . . 2 Data Loss (major) 1 | . . . . 1 Weapon Failures 1 | . . . . 1 Overload Shots . | . . . . . Overflow Damage . | . . . . . Projectiles . | . . . . . Explosions . | . . . . . Melee . | . . . . . Knockbacks . | . . . . . Impact . | . . . . . Kinetic . | . . . . . Secondary . | . . . . . Self-Inflicted Damage 38 | . . . 38 . Shots 2 | . . . 2 . Rammed . | . . . . . Targets Rammed . | . . . . . Kicked . | . . . . . Crushed . | . . . . . Highest Temperature 234 | 210 60 132 234 189 Average Temperature 55 | 58 28 54 67 38 Received Heat Transfer 536 | . 27 204 45 260 Effects 2 | . . . 2 . Interference 2 | . . . 2 . Siege Activations . | . . . . . Martial Activations . | . . . . . Shielding Activations . | . . . . . Robots Disrupted . | . . . . . Combat Hostiles . | . . . . . Robots Corrupted . | . . . . . Combat Hostiles . | . . . . . Parts Fried . | . . . . . Impact Corruptions . | . . . . . Robots Melted . | . . . . . Combat Hostiles . | . . . . . Parts Melted . | . . . . . Heat Transferred 807 | 633 124 . 50 . Parts Sabotaged . | . . . . . Parts Stolen . | . . . . . Parts Stripped . | . . . . . Power Chain Reactions 1 | . . . 1 . Alert | -11 -10 -9 -9 -9 ------- Run | Yrd Mat Mat Sto Rec Maximum Alert Level 1 | . . . 1 . Low Security (%) 92 | 100 100 100 73 100 Level 1 7 | . . . 26 . Level 2 . | . . . . . Level 3 . | . . . . . Level 4 . | . . . . . Level 5 . | . . . . . High Security . | . . . . . Max Security . | . . . . . Peak Influence 277 | 10 24 181 277 118 Initial 92 | . . . 64 92 Average 74 | 1 1 106 157 30 Influence Increases 973 | 45 29 333 487 79 Destroy 0b10 Robot/C 500 | . . 200 240 60 Destroy 0b10 Robot/NC 90 | 45 5 15 25 . Destroy Leader 98 | . . 52 46 . Allied During Kill 55 | . . . 40 15 Successful Hack 38 | . 24 4 6 4 Disable Machine 60 | . . 30 30 . Destroy Structure 57 | . . 32 25 . Partial Spotted 15 | . . . 15 . Lose Combat Pursuer 60 | . . . 60 . Influence Decreases 973 | 45 29 180 403 316 Entered New Map 234 | . . . 89 145 Time Decay 612 | 45 29 170 254 114 Lost Part 30 | . . 10 20 . Lost Ally 97 | . . . 40 57 Squads Dispatched 2 | . . 1 1 . Investigation . | . . . . . Extermination . | . . . . . Reinforcement 2 | . . 1 1 . Assault . | . . . . . Garrison . | . . . . . Intercept . | . . . . . Searches Triggered . | . . . . . Construction Impeded . | . . . . . Haulers Reinforced . | . . . . . Active Scanning Responses . | . . . . . Cargo Convoy Interrupts . | . . . . . Stealth | -11 -10 -9 -9 -9 --------- Run | Yrd Mat Mat Sto Rec Distress Signals 2 | . . 1 1 . Communications Jammed . | . . . . . Distress Signals . | . . . . . Times Spotted 51 | . 3 16 22 10 Peak Tracking Total 6 | . 2 6 4 5 Tactical Retreats 4 | . . . 4 . Traps | -11 -10 -9 -9 -9 ------- Run | Yrd Mat Mat Sto Rec Traps Triggered . | . . . . . Indirectly . | . . . . . Trap Hack Attempts . | . . . . . Triggered . | . . . . . Disarmed . | . . . . . Reprogrammed . | . . . . . Reused . | . . . . . Traps Extracted . | . . . . . Installed . | . . . . . Triggered . | . . . . . Machines | -11 -10 -9 -9 -9 ---------- Run | Yrd Mat Mat Sto Rec Machines Disabled 4 | . . 2 2 . Max in Single Turn 1 | . . 1 1 . Machines Repaired . | . . . . . Machines Dismantled . | . . . . . Machines Sabotaged . | . . . . . Overloaded Fab Kills . | . . . . . Hacking | -11 -10 -9 -9 -9 --------- Run | Yrd Mat Mat Sto Rec Machines Accessed 20 | . 2 2 8 8 Terminals 14 | . 2 2 7 3 Fabricators . | . . . . . Repair Stations . | . . . . . Recycling Units 4 | . . . 1 3 Scanalyzers . | . . . . . Garrison Access . | . . . . . Total Hacks 48 | . 6 4 12 26 Successful 38 | . 4 2 10 22 Failed 10 | . 2 2 2 4 Catastrophic 2 | . . 1 . 1 Database Lockouts . | . . . . . Manual 4 | . . 1 3 . Terminals 29 | . 6 4 11 8 Fabricators . | . . . . . Repair Stations . | . . . . . Recycling Units 4 | . . . 1 3 Scanalyzers . | . . . . . Garrison Access . | . . . . . Terminal Hacks 34 | . 4 2 9 19 Record 13 | . . . . 13 Robot Analysis 1 | . . 1 . . Open Door 3 | . . . 3 . Branch Access Points 1 | . . . . 1 Emergency Access Points 1 | . . 1 . . Recycling Unit Index 1 | . . . . 1 Alert Level 2 | . . . 2 . Locate Traps 3 | . 2 . 1 . Dispatch Records 1 | . . . 1 . Hauler Manifests 3 | . 1 . 1 1 Zone Layout 3 | . 1 . 1 1 Release Object 2 | . . . . 2 Fabricator Hacks . | . . . . . Repair Station Hacks . | . . . . . Recycling Unit Hacks 4 | . . . 1 3 Report Inventory 4 | . . . 1 3 Scanalyzer . | . . . . . Garrison Access Hacks . | . . . . . Unauthorized Hacks . | . . . . . Terminals . | . . . . . Fabricators . | . . . . . Repair Stations . | . . . . . Recycling Units . | . . . . . Scanalyzers . | . . . . . Garrison Access . | . . . . . Data Cores Recovered 1 | . 1 . . . Used . | . . . . . Hacking Detections 7 | . 2 1 1 3 Full Trace Events 2 | . 1 . 1 . Feedback Events . | . . . . . Feedback Blocked . | . . . . . Robot Schematics Acquired . | . . . . . Robots Built . | . . . . . Authchips . | . . . . . Time . | . . . . . Total Robot Build Rating . | . . . . . Part Schematics Acquired . | . . . . . Parts Built . | . . . . . Authchips . | . . . . . Time . | . . . . . Total Part Build Rating . | . . . . . Parts Repaired . | . . . . . Time . | . . . . . Parts Recycled . | . . . . . Recycled Matter . | . . . . . Retrieved Matter . | . . . . . Retrieved Components . | . . . . . Parts Scanalyzed . | . . . . . Part Schematics Acquired . | . . . . . Parts Damaged . | . . . . . Bothacking | -11 -10 -9 -9 -9 ------------ Run | Yrd Mat Mat Sto Rec Used RIF Installer . | . . . . . Robots Hacked 1 | . . . . 1 Non-combat . | . . . . . Combat 1 | . . . . 1 Robot Hacks Applied 1 | . . . . 1 parse_system 1 | . . . . 1 Relay Couplers Released . | . . . . . Fabnet Peak Effective % . | . . . . . Robots Rewired 9 | . . . . 9 Allies Hacked . | . . . . . Hacks Repelled . | . . . . . Allies | -11 -10 -9 -9 -9 -------- Run | Yrd Mat Mat Sto Rec Total Allies 17 | . . . 8 9 Largest Group 13 | . . . 8 13 Highest-Rated Group 206 | . . . 72 206 Highest-Rated Ally 27 | . . . 16 27 Total Orders . | . . . . . Ally Attacks 64 | . . . 29 35 Total Damage 515 | . . . 247 268 Kills 8 | . . . 5 3 Allies Corrupted . | . . . . . Allies Melted . | . . . . . Intel | -11 -10 -9 -9 -9 ------- Run | Yrd Mat Mat Sto Rec Active Infowar (turns) 665 | 199 196 12 240 18 Seismic 395 | 199 196 . . . ECM 270 | . . 12 240 18 Robot Analysis Total 1 | . . 1 . . Derelict Logs Recovered . | . . . . . Drone Launches . | . . . . . Drone Recoveries . | . . . . . Exploration | -11 -10 -9 -9 -9 ------------- Run | Yrd Mat Mat Sto Rec Turns Passed 1889 | 256 274 371 548 440 Spaces Moved 1917 | 152 128 270 685 682 Core 14 | 14 . . . . Treads . | . . . . . Legs 356 | 138 128 90 . . Wheels 345 | . . 180 165 . Hover 31 | . . . . 31 Flight 1171 | . . . 520 651 Fastest Speed 34 | 50 120 80 34 34 Average Speed 60 | 117 120 93 46 36 Slowest Speed 250 | 150 120 120 250 80 Overloaded Moves . | . . . . . Propulsion Burnouts . | . . . . . Robots Hopped 14 | . . . 4 10 Potential Cave-ins . | . . . . . Cave-ins Triggered . | . . . . . Exploration Rate (%) 45 | 9 23 21 87 88 Regions Visited 4 Branch Regions 2 Pre-discovered Areas . | . . . . . Known Exits Taken . | . . . . . Unknown Exits Taken 4 | 1 1 1 1 . Scrap Searched . | . . . . . Spaces Dug . | . . . . . Terrain Destroyed 59 | . . 35 24 . Melee . | . . . . . Projectile . | . . . . . AOE 59 | . . 35 24 . Terrain Rammed . | . . . . . Walls Destroyed . | . . . . . Machines Disabled . | . . . . . Actions | -11 -10 -9 -9 -9 --------- Run | Yrd Mat Mat Sto Rec Total 2501 | 191 243 340 882 845 Wait 376 | . 107 8 135 126 Move 1887 | 151 127 269 676 664 Hop 12 | . . . 4 8 Pick Up 43 | 14 3 10 13 3 Fast Attach 7 | . . 1 5 1 Attach 28 | 7 1 10 4 6 Detach 1 | . . . 1 . Swap 19 | . . 5 11 3 Drop 33 | . 2 9 16 6 Fire 79 | 19 3 28 17 12 Melee 16 | . . . . 16 Ram . | . . . . . Kick . | . . . . . Crush . | . . . . . Escape Stasis . | . . . . . Rewire . | . . . . . Trap . | . . . . . Miscellaneous . | . . . . . Route ------- -11/Scrapyard -10/Materials -9/Materials -9/Storage -9/Recycling History --------- Turn | Location | Event 9 | -11/Scrapyard | Discovered new exit (range 16) 257 | -11/Scrapyard | Entered Materials 315 | -10/Materials | Build established: Mutant 473 | -10/Materials | Discovered new exit (range 9) 531 | -10/Materials | Entered another Materials area 531 | -9/Materials | Evolved 2 slots: Propulsion x1, Utility x1 877 | -9/Materials | Discovered new exit (range 9) 902 | -9/Materials | Entered Storage 1051 | -9/Storage | Build established: Scavenger-Mutant 1229 | -9/Storage | Discovered new exit (range 20) 1292 | -9/Storage | Assisted by bots powering up and referring to "LRC-V3" 1328 | -9/Storage | Met 01-MTF 1450 | -9/Storage | Entered Recycling 1450 | -9/Recycling | Accompanied by 7 allies (01-MTF) 1451 | -9/Recycling | Met a Zionite searching for Scraptown 1580 | -9/Recycling | Build established: Commander-Mutant 1762 | -9/Recycling | Lost 5 allies 1796 | -9/Recycling | Scanned before Scraplab entrance 1803 | -9/Recycling | Entered Scraplab 1807 | -9/Recycling | Discovered new exit (range 2) 1823 | -9/Recycling | Angered Scraplab inhabitants 1825 | -9/Recycling | Found Prototype Device 1832 | -9/Recycling | Core integrity fell below 50% 1836 | -9/Recycling | Core integrity fell below 20% 1858 | -9/Recycling | Identified Scrap Engine 1866 | -9/Recycling | Lost 4 parts (1p2n1w) 1890 | -9/Recycling | Destroyed by 01-MTF with 01-MTF's Shockpuncher Last Messages --------------- 01870_ Thermabolt penetrates Wall. 01870_ Thermabolt penetrates Mercenary 2f. 01870_ Mercenary 2f destroyed. 01870_ Thermabolt penetrates Wall. 01871_ Defender 2b destroyed. 01872_ Thermabolt penetrates Defender 2a. 01872_ Thermabolt penetrates Wall. 01872_ Thermabolt penetrates Defender 2a. 01872_ Thermabolt penetrates Wall. 01872_ Thermabolt penetrates Defender 2a. 01872_ Thermabolt penetrates Wall. 01872_ Thermabolt penetrates Defender 2a. 01872_ Defender 2a destroyed. 01872_ Thermabolt penetrates Wall. 01874_ U-05 Engineer builds a Door. 01874_ Thermabolt penetrates P-60 Hacker. 01875_ U-05 Engineer lays Concrete. 01882_ System corrupted: Matter fused (-6). 01882_ U-05 Engineer builds a Wall. 01886_ U-05 Engineer lays Concrete. Map ----- +----------------------------------------------------+ | ?????????????????????????????????????????????????? | | ?????????????????????????????????????????????????? | | ?????????????????????#???????????????????????????? | | ????????????????###### ???????###???#############? | | ????????????????? ??????## ###?#% =%!% #? | | ???????????????? ?????# """### ! =* %= #? | | ???????????????? ####### "###!% ![%! = #? | | ???????????????? " ! %%" * ! % #? | | ???????????????? # #%% %!!!!%!!## | | ????????????????????????# % # [[%%%% !=%/ | | ????????????????????????# %+ **! %*[=## | | ???????????????????????## %#### ############? | | #######???###?????####### ######???????????? | | ] #??? ????+ ##???????????????? | | [ #??? ???#### % ########?????????? | | #???? ?????# ## T ?????????? | | #????? ????# # """ #????????? | | #?????? ???# ### ""???????????? | | #???????? #### ### ""???????????? | | #?????????? + + ??????????? | | #???????????# p###### """ ?????????? | | #+#########+####### ""#??? """ ?????????? | | Y"#??? ""???????????? | | ""#??? ???????????? | | ###????T?##????????????? | | #+############ ##########@#??????#?##????????????? | | #???????# #????????# #??###### ###??????????? | | #?#######+#######??# #??# #??????????? | | #?# #??# #??# #??????????? | | #?# #??# #### #??????????? | | ### ##?# + #??????????? | | ## #?# #### #??????????? | | ### ##?# #??# #?? ?????? | | #?# #??# #??# #?? ?#?? | | #?#######+########## #### #?? #?? | | ##/###??# # #?? ### | | ?# #????# + #?? | | ?# #????# # #?? | | ## ###########/############# # #?? | | #?# #???????# # #?# | | #?# ##??????# # #?# | | " #?# #??????# # #?# | | """ #?# ##??????# # #?# | | """ #?# #???????# # #?# | | """ ### ##??????# # #?# | | "" + #??????# ##+######### | | """ # ##??????# | | "" ##+########???????# #####+###### | | "" #??????????????# #?#! # | | " #??????????????# #?#! + | +----------------------------------------------------+ Best States ------------- Heat Dissipation 50 Energy Generation 10 Energy Capacity 250 Matter Stores 300 Matter Capacity 300 Sight Range 16 Terrain Scan Density 10 ECM Strength 1 Evasion (%) 63 Offensive Hacking 10 Item Schematics ----------------- None Robot Schematics ------------------ None Fabricated ------------ Nothing Repaired ---------- Nothing Alien Tech Used ----------------- None Achievements -------------- \\IAMDERELICT Challenges ------------ None Game ------ Seed ThermalHybridPit Manual? 0 Play Time 00:51:33 Cumulative 22.5 hours Start 2025.08.29 @ 10:48:29 End 2025.08.29 @ 16:56:42 Sessions 5 Manual Loads 0 Difficulty Rogue Special Mode None Game No. 38 Rogue 38 Adventurer 0 Explorer 0 Win Type - Total 0 Types 0/0/0/0/0/0/0/0/0/0 Lore% 16 Gallery% 22 Achievement% 21 Wizard Run 0 Options --------- Layout 1 ASCII 0 Keyboard 0 Movement Mouse Keybinds 0 Fullscreen 2 Font 24/Smallcaps Map View 50x35 Zoom Use 0% Tactical HUD 1 Map Filters NONE Filters NONE Steam 1 RUN: 5690dafb-b470-4931-bb34-ff3442f7deb2